Workbook

Sheet VBA to insert columns
B4: VBA to Insert Every Other Column in Excel
B6: Author | C6: Ablebits.com
B7: Last update | C7: 2023-07-11
B8: Tutorial URL | C8: How to insert columns in Excel
B10: The workbook contains the following macro:
B11: InsertEveryOtherColumn - inserts a blank column between every other column in the selected range.
B13: How to use the macros:
B14: 1. Keep this workbook open.
B15: 2. Open your own workbook in which you want to insert columns.
B16: 3. In your workbook, select the range where you want to add new columns.
B17: 4. Press Alt + F8, select the InsertEveryOtherColumn macro, and click Run.

Sheet Sample data
A1: Project | B1: Start date | C1: Due date | D1: Duration (days)
A2: Bigfoot | B2: 2023-07-29T13:45:43 | C2: 2023-10-04T16:16:23 | D2: =INT(C2-B2) -> 67 | F2: How to use the macro to insert every other column:
A3: Cascade | B3: 2023-06-06T21:41:09 | C3: 2023-10-02T21:16:08 | D3: =INT(C3-B3) -> 117
A4: CrimsonWave | B4: 2023-07-11T00:18:12 | C4: 2023-09-29T07:34:50 | D4: =INT(C4-B4) -> 80 | F4: 1. Select the range A:D.
A5: EquinoxX | B5: 2023-07-24T00:15:22 | C5: 2023-10-26T11:20:56 | D5: =INT(C5-B5) -> 94 | F5: 2. Press Alt + F8 to open the macro dialog box.
A6: Hornets | B6: 2023-06-28T08:09:34 | C6: 2023-10-04T09:43:01 | D6: =INT(C6-B6) -> 98 | F6: 3. Choose the InsertEveryOtherColumn macro.
A7: Mercury | B7: 2023-05-18T20:05:18 | C7: 2023-10-28T23:44:13 | D7: =INT(C7-B7) -> 163 | F7: 4. Click Run to execute the code.
A8: Moonstruck | B8: 2023-05-07T04:13:07 | C8: 2023-08-23T22:35:39 | D8: =INT(C8-B8) -> 108
A9: NovaQuest | B9: 2023-06-30T07:48:53 | C9: 2023-08-11T03:10:39 | D9: =INT(C9-B9) -> 41
A10: Peak-Blast | B10: 2023-05-14T20:12:57 | C10: 2023-08-12T18:13:49 | D10: =INT(C10-B10) -> 89
A11: PhoenixRise | B11: 2023-06-17T17:05:34 | C11: 2023-09-02T11:22:31 | D11: =INT(C11-B11) -> 76
A12: Skill-Up | B12: 2023-05-18T00:58:05 | C12: 2023-09-30T05:36:45 | D12: =INT(C12-B12) -> 135
A13: SolarFlare | B13: 2023-03-28T05:16:48 | C13: 2023-10-02T04:15:03 | D13: =INT(C13-B13) -> 187
A14: Sputnik | B14: 2023-05-30T20:20:17 | C14: 2023-09-27T10:19:26 | D14: =INT(C14-B14) -> 119
A15: ThunderTide | B15: 2023-07-29T10:45:46 | C15: 2023-09-28T00:02:56 | D15: =INT(C15-B15) -> 60
A16: Tip-Row | B16: 2023-06-03T04:15:56 | C16: 2023-09-30T22:58:16 | D16: =INT(C16-B16) -> 119
A17: VelocityVortex | B17: 2023-04-23T23:43:02 | C17: 2023-10-23T00:22:04 | D17: =INT(C17-B17) -> 182
A18: Whistler | B18: 2023-06-25T14:49:43 | C18: 2023-10-14T22:00:31 | D18: =INT(C18-B18) -> 111
A19: Wildfire | B19: 2023-05-23T06:00:02 | C19: 2023-10-29T02:00:25 | D19: =INT(C19-B19) -> 158
A20: Yaeger | B20: 2023-04-26T21:29:40 | C20: 2023-10-17T15:46:45 | D20: =INT(C20-B20) -> 173
A21: ZenithZone | B21: 2023-05-07T10:11:51 | C21: 2023-09-25T02:52:28 | D21: =INT(C21-B21) -> 140
